bitfinex-derivatives/quotes_ETHF0:USTF0_20241017
["timestamp","ask_amount","ask_price","bid_price","bid_amount"]
[1729149954964,0.38057,2628.0,2627.9,0.78528]
[1729149955365,0.38057,2628.0,2627.9,0.4047]
[1729149956368,0.38057,2628.0,2627.9,0.78528]
[1729149956570,0.38057,2628.0,2627.9,0.4047]
[1729149956864,0.3806,2627.8,2627.7,3.2078]
[1729149960668,0.38064,2627.5,2627.4,0.4214]
[1729149960872,0.38064,2627.5,2627.4,4.227]
[1729149961169,0.38066,2627.4,2627.3,0.4084]
[1729149963183,0.38067,2627.3,2627.2,3.6376]
[1729149963374,0.78007,2627.3,2627.2,3.2078]
[1729149967075,1.35109,2627.3,2626.8,3.58854]
[1729149967281,0.38073,2627.0,2626.8,3.2078]
[1729149967580,0.38072,2627.0,2626.9,0.38072]
[1729149967882,0.38072,2627.0,2626.8,3.58853]
[1729149968078,0.38072,2627.0,2626.8,3.2078]
[1729149968380,0.38072,2627.0,2626.9,0.38073]
[1729149968877,0.38072,2627.0,2626.8,3.58853]
[1729149969280,0.38071,2627.1,2626.9,0.38073]
[1729149969491,0.38071,2627.0,2626.9,0.38073]
[1729149970377,0.38071,2627.1,2627.0,0.38071]
[1729149970584,0.38066,2627.4,2627.2,0.38069]
[1729149970782,0.38065,2627.5,2627.4,0.38066]
[1729149970982,0.38063,2627.6,2627.5,0.38064]
[1729149971279,0.821,2627.8,2627.3,0.8146]
[1729149971280,0.4233,2627.8,2627.3,0.8146]
[1729149971482,4.125,2628.0,2627.9,0.38058]
[1729149971672,0.38055,2628.2,2628.0,0.38056]
[1729149971873,0.4233,2628.3,2627.9,0.4022]
[1729149972072,0.4233,2628.3,2628.0,0.38057]
[1729149972073,0.38054,2628.2,2628.0,0.38057]
[1729149973082,0.4233,2628.3,2627.9,0.8146]
[1729149973278,0.38055,2628.2,2628.0,0.38056]
[1729149973974,0.4233,2628.3,2628.0,0.38056]
[1729149974186,0.38054,2628.2,2628.0,0.38056]
[1729149974685,2.67,2628.6,2628.1,3.2078]
[1729149974889,2.67,2628.6,2628.2,0.38053]
[1729149975387,0.38052,2628.4,2628.2,0.38053]
[1729149975581,2.67,2628.6,2628.2,0.38053]
[1729149975884,0.38054,2628.2,2628.1,3.58835]
[1729149976082,0.3914,2628.7,2628.0,0.38056]
[1729149976083,0.38056,2628.1,2628.0,0.38056]
[1729149977176,0.38054,2628.3,2628.1,0.38055]
[1729149977776,2.67,2628.4,2627.9,0.8146]
[1729149977978,0.38056,2628.1,2627.9,0.8146]
[1729149978174,0.38056,2628.1,2627.9,1.19517]
[1729149978378,2.67,2628.4,2628.0,0.38057]
[1729149978574,0.38056,2628.1,2627.9,0.8146]
[1729149978887,0.38055,2628.2,2628.0,0.38057]
[1729149979387,0.38057,2628.1,2627.9,1.19518]
[1729149979582,0.38057,2628.0,2627.9,0.8146]
[1729149979781,3.6213,2628.4,2627.9,1.19518]
[1729149979782,0.38057,2628.1,2627.9,1.19518]
[1729149979987,0.38057,2628.1,2628.0,0.38057]
[1729149980983,2.67,2628.4,2627.9,0.8146]
[1729149981183,0.38057,2628.0,2627.9,0.8146]
[1729149981588,0.38057,2628.0,2627.9,1.19518]
[1729149981891,0.38057,2628.0,2627.9,0.8146]
[1729149982290,0.38053,2628.3,2627.9,1.19518]
[1729149982486,3.6213,2628.4,2627.9,1.19518]
[1729149982688,0.38057,2628.0,2627.9,0.8146]
[1729149982889,0.38057,2628.0,2627.9,1.19518]
[1729149983194,0.38057,2628.0,2627.9,0.8146]
[1729149984489,0.38057,2628.0,2627.9,0.4124]
[1729149984692,0.38058,2627.9,2627.8,3.2078]
[1729149985891,0.38058,2627.9,2627.8,3.58839]
[1729149986685,0.38058,2627.9,2627.8,0.38059]
[1729149986981,0.38058,2627.9,2627.8,3.58839]
[1729149987691,0.38058,2627.9,2627.8,0.38059]
[1729149987994,0.38058,2627.9,2627.8,3.58839]
[1729149988289,0.38058,2627.9,2627.8,3.2078]
[1729149988791,0.38058,2627.9,2627.8,3.5884]
[1729149989390,0.38058,2627.9,2627.8,3.2078]
[1729149990887,0.38058,2627.9,2627.8,3.5884]
[1729149991486,0.38058,2627.9,2627.8,3.2078]
[1729149991688,0.38058,2627.9,2627.8,3.5884]
[1729149992399,0.38058,2627.9,2627.8,3.2078]
[1729149992591,0.38058,2627.9,2627.8,3.5884]
[1729149992787,0.38058,2627.9,2627.8,3.2078]
[1729149992999,0.38061,2627.7,2627.6,1.42099038]
[1729149993193,0.38063,2627.6,2627.5,0.99499038]
[1729149993392,0.38066,2627.4,2627.3,0.99499038]
[1729149993696,0.38067,2627.3,2627.2,0.99499038]
[1729149993898,1.61067,2627.3,2627.2,0.99499038]
[1729149994194,1.61067,2627.3,2627.0,1.40409038]
[1729149994195,1.23,2627.3,2627.0,1.40409038]
[1729149994400,1.23,2627.2,2627.1,0.3807]
[1729149994598,1.23,2627.2,2627.1,1.37569038]
[1729149995899,0.38068,2627.3,2627.2,0.38069]
[1729149996097,0.38068,2627.3,2627.1,1.37568038]
[1729149996296,0.38068,2627.3,2627.2,0.38069]
[1729149996494,0.38068,2627.3,2627.1,0.99499038]
[1729149996495,0.38068,2627.3,2627.1,1.37568038]
[1729149997196,3.4947,2627.6,2627.1,1.37568038]
[1729149997387,0.38064,2627.5,2627.1,0.38069]
[1729149997592,0.38068,2627.3,2627.1,0.38069]
[1729149997788,0.38068,2627.3,2627.0,1.40409038]
[1729149997994,0.38067,2627.4,2627.2,0.38069]
[1729149998191,0.38067,2627.3,2627.2,0.38069]
[1729149999200,0.38067,2627.3,2627.1,0.38069]
[1729149999400,3.4947,2627.6,2627.0,4.61189038]
[1729149999611,0.38068,2627.3,2627.1,0.3807]
[1729149999897,3.4947,2627.6,2627.0,4.61189038]
[1729150000294,0.4258,2627.6,2627.5,0.38064]
[1729150000490,0.38061,2627.7,2627.3,4.20279038]
[1729150000695,0.4053,2627.8,2627.6,0.38063]
[1729150001099,0.78591,2627.8,2627.6,0.38063]
[1729150001601,0.78591,2627.8,2627.6,0.38062]
[1729150001793,0.4053,2627.8,2627.6,0.38062]
[1729150002000,0.78591,2627.8,2627.6,0.38062]
[1729150002501,0.78591,2627.8,2627.7,0.38061]
[1729150004808,5.8778,2628.2,2627.6,3.2078]
[1729150005106,5.8778,2628.2,2628.1,0.38056]
[1729150005107,3.58836,2628.2,2628.1,0.38056]
[1729150005405,0.38057,2628.1,2628.0,0.38057]
[1729150006007,0.3935,2628.3,2628.0,3.2078]
[1729150006306,0.38053,2628.3,2628.2,0.38054]
[1729150007201,0.38054,2628.2,2628.1,0.76534]
[1729150008099,2.67,2628.5,2628.4,0.3805]
[1729150008100,0.3805,2628.5,2628.4,0.3805]
[1729150008408,0.77399,2628.6,2628.5,0.3805]
[1729150008596,0.77399,2628.6,2628.2,0.99499038]
[1729150008792,0.77399,2628.6,2628.5,0.3805]
[1729150009206,4.57799,2628.6,2628.5,0.3805]
[1729150009397,0.3935,2628.6,2628.5,0.3805]
[1729150009593,3.0692,2628.9,2628.3,5.15410038]
[1729150009802,3.0692,2628.9,2628.4,2.65182454]
[1729150009996,0.38045,2628.8,2628.7,0.38047]
[1729150010796,0.38045,2628.8,2628.6,0.38047]
[1729150011003,0.38045,2628.8,2628.6,0.38048]
[1729150011195,0.38046,2628.8,2628.7,0.38046]
[1729150012200,0.4082,2629.1,2628.6,3.2078]
[1729150012403,0.4027,2629.3,2629.2,0.3804]
[1729150012702,3.0727,2629.6,2629.1,0.3913]
[1729150012905,3.05037,2629.4,2629.3,0.38038]
[1729150013305,2.67,2629.4,2629.3,0.38038]
[1729150013508,3.05037,2629.4,2629.3,0.38038]
[1729150013713,2.67,2629.4,2629.3,0.38038]
[1729150014302,3.05037,2629.4,2629.3,0.38038]
[1729150016413,2.67,2629.4,2629.1,0.7811]
[1729150016605,2.67,2629.4,2629.2,0.38039]
[1729150016911,2.67,2629.4,2629.1,0.7811]
[1729150017213,3.05037,2629.4,2629.3,0.38038]
[1729150017424,2.67,2629.4,2629.3,0.38038]
[1729150018414,3.05037,2629.4,2629.3,0.38038]
[1729150019416,0.38039,2629.3,2629.2,0.38039]
[1729150019602,3.05037,2629.4,2629.3,0.38038]
[1729150020205,2.67,2629.4,2629.1,0.7811]
[1729150020401,0.38038,2629.3,2629.1,0.7811]
[1729150020606,2.67,2629.4,2629.1,0.7811]
[1729150020805,3.05037,2629.4,2629.3,0.38038]
[1729150021011,2.67,2629.4,2629.1,0.7811]
[1729150021219,3.05037,2629.4,2629.3,0.38038]
[1729150024811,0.38037,2629.4,2629.3,0.38038]
[1729150025112,3.0727,2629.6,2629.1,0.7811]
[1729150025309,3.0727,2629.6,2629.0,3.58822]
[1729150025310,2.67,2629.2,2629.0,3.58822]
[1729150025518,2.67,2629.2,2629.0,3.2078]
[1729150025519,1.58031,2629.1,2629.0,3.2078]
[1729150027620,1.1999,2629.1,2628.7,0.38046]
[1729150027813,0.38042,2629.0,2628.9,3.2078]
[1729150028527,0.38042,2629.0,2628.9,3.58824]
[1729150028724,0.38042,2629.0,2628.9,3.2078]
[1729150031925,0.95095,2629.4,2628.9,3.2078]
[1729150031926,2.67,2629.6,2628.9,7.0118]
[1729150032117,0.38037,2629.4,2629.3,0.38038]
[1729150032438,0.38036,2629.5,2629.1,0.3986]
[1729150032622,0.38036,2629.5,2629.4,0.38037]
[1729150032817,0.38038,2629.4,2629.3,0.38038]
[1729150035725,0.38037,2629.5,2629.4,0.38036]
[1729150037335,2.67,2629.6,2629.2,0.4031]
[1729150037523,0.38034,2629.7,2629.6,0.38033]
[1729150037832,0.38036,2629.5,2629.4,0.38035]
[1729150038033,0.38035,2629.6,2629.5,0.38034]
[1729150039319,0.38034,2629.7,2629.6,0.38033]
[1729150039527,4.4137,2629.8,2629.5,0.38034]
[1729150039528,0.38035,2629.6,2629.5,0.38034]
[1729150041623,4.4137,2629.8,2629.2,7.23189]
[1729150041826,1.61034,2629.6,2629.5,0.38034]
[1729150042923,1.23,2629.6,2629.5,0.38034]
[1729150043125,1.61034,2629.6,2629.5,0.38034]
[1729150044426,0.38035,2629.5,2629.4,1.61037]
[1729150044625,0.38035,2629.5,2629.2,4.8409]
[1729150044626,1.23,2629.5,2629.2,4.8409]
[1729150044928,1.23,2629.3,2629.2,3.6109]
[1729150045132,1.61038,2629.3,2629.2,3.6109]
[1729150045633,1.61038,2629.3,2629.2,3.9913]
[1729150045829,1.23,2629.3,2629.2,3.9913]
[1729150046032,1.61038,2629.3,2629.2,3.6109]
[1729150046229,1.61038,2629.3,2629.2,3.9913]
[1729150046733,1.61038,2629.3,2629.2,3.6109]
[1729150047125,1.61038,2629.3,2629.2,3.2078]
[1729150048724,2.03428,2629.3,2629.2,3.2078]
[1729150050721,2.42828,2629.3,2629.2,3.2078]
[1729150051623,2.42828,2629.3,2629.2,3.5882]
[1729150051824,2.42828,2629.3,2629.2,3.2078]
[1729150052535,0.3804,2629.2,2629.1,3.2078]
[1729150052738,1.6104,2629.2,2629.1,3.58821]
[1729150052927,1.6104,2629.2,2629.1,3.2078]
[1729150053436,11.0332,2629.2,2628.9,0.99499038]
[1729150053633,0.38044,2628.9,2628.8,0.99499038]
[1729150053828,7.23,2628.9,2628.5,1.38029038]
[1729150054026,1.61048,2628.6,2628.5,0.3853]
[1729150054633,1.23,2628.6,2628.3,3.2078]
[1729150054940,1.61051,2628.4,2628.3,5.43279038]
[1729150055334,1.61051,2628.4,2628.3,3.2078]
[1729150055939,0.38051,2628.4,2628.3,4.20279038]
[1729150056325,0.38051,2628.4,2628.3,3.2078]
[1729150056735,0.38053,2628.3,2628.2,0.3853]
[1729150056930,0.79253,2628.3,2628.2,0.3853]
[1729150057235,0.38056,2628.1,2628.0,0.99499038]
[1729150057538,0.38056,2628.1,2627.9,3.58837]
[1729150057539,0.38056,2628.1,2627.9,5.37516038]
[1729150057934,0.412,2628.3,2627.9,4.99459038]
[1729150058128,0.38057,2628.0,2627.9,4.99459038]
[1729150058329,3.05057,2628.0,2627.9,3.2078]
[1729150059532,2.67,2628.2,2627.9,3.2078]
[1729150059735,0.38057,2628.0,2627.9,3.2078]
[1729150060736,0.38057,2628.0,2627.9,3.58838]
[1729150060925,0.38057,2628.0,2627.9,3.2078]
[1729150062330,3.05057,2628.0,2627.9,3.2078]
[1729150063643,0.3806,2627.8,2627.7,0.3806]
[1729150064344,0.38061,2627.7,2627.6,0.4229]
[1729150067147,0.38061,2627.7,2627.4,0.3999]
[1729150067148,0.38064,2627.5,2627.4,0.3999]
[1729150067335,3.0953,2627.8,2627.4,0.3999]
[1729150067536,0.38064,2627.5,2627.4,0.3999]
[1729150067936,0.38064,2627.6,2627.4,0.78055]
[1729150068248,3.0953,2627.8,2627.4,0.3999]
[1729150068437,0.38064,2627.6,2627.4,0.78055]
[1729150068641,0.38064,2627.5,2627.4,0.3999]
[1729150068841,0.38066,2627.4,2627.3,3.2078]
[1729150069043,0.38066,2627.4,2627.3,3.58847]
[1729150069248,0.38066,2627.4,2627.3,3.2078]
[1729150069551,0.38066,2627.4,2627.3,3.58847]
[1729150069751,0.38066,2627.4,2627.3,3.2078]
[1729150069944,0.38066,2627.4,2627.3,3.58847]
[1729150070135,0.38065,2627.5,2627.4,0.38066]
[1729150070341,0.38066,2627.4,2627.3,3.2078]
[1729150070546,0.38066,2627.4,2627.3,3.58847]
[1729150070746,0.38065,2627.5,2627.3,3.58847]
[1729150070944,0.4253,2627.8,2627.4,0.38066]
[1729150070945,0.38064,2627.6,2627.4,0.38066]
[1729150071152,0.38064,2627.6,2627.4,0.3932]
[1729150071442,0.38064,2627.6,2627.5,0.38064]
[1729150071950,0.4253,2627.8,2627.4,0.3932]
[1729150071951,0.38062,2627.7,2627.4,0.3932]
[1729150072141,3.4715,2627.9,2627.4,0.3932]
[1729150072142,0.38057,2628.0,2627.4,3.0632]
[1729150072450,0.38057,2628.0,2627.9,0.38057]
[1729150072750,0.38056,2628.1,2627.6,3.2078]
[1729150072950,0.38056,2628.1,2628.0,0.38057]
[1729150074347,0.38058,2628.0,2627.9,0.38058]
[1729150075047,0.3914,2628.2,2627.7,0.3959]
[1729150075245,0.38057,2628.1,2628.0,0.38056]
[1729150075552,0.38058,2628.0,2627.9,0.38058]
[1729150075849,2.67,2628.0,2627.5,0.4231]
[1729150076047,0.38061,2627.8,2627.7,0.38061]
[1729150076349,2.67,2628.0,2627.5,0.8265]
[1729150076749,3.62144,2628.0,2627.5,0.8265]
[1729150077544,0.38063,2627.6,2627.5,1.20713]
[1729150078341,0.38061,2627.8,2627.6,0.38062]
[1729150078839,2.67,2628.0,2627.6,0.38062]
[1729150079043,0.38061,2627.7,2627.6,0.38062]
[1729150079245,0.38061,2627.7,2627.5,0.8265]
[1729150079846,2.67,2628.0,2627.5,0.8265]
[1729150080147,3.62144,2628.0,2627.5,0.8265]
[1729150080345,3.62144,2628.0,2627.6,0.38063]
[1729150080346,0.38062,2627.7,2627.6,0.38063]
[1729150080547,0.38063,2627.6,2627.5,1.20714]
[1729150081053,0.38062,2627.7,2627.6,0.38062]
[1729150081248,0.38058,2627.9,2627.5,1.20713]
[1729150081452,0.38062,2627.7,2627.5,1.20713]
[1729150082450,0.38063,2627.6,2627.5,0.8265]
[1729150082959,0.38063,2627.6,2627.5,1.20714]
[1729150084255,0.38063,2627.6,2627.5,0.8265]
[1729150084653,0.38063,2627.6,2627.5,1.20714]
[1729150086953,0.38063,2627.6,2627.5,0.8265]
[1729150087559,0.38063,2627.6,2627.5,0.4034]
[1729150087862,0.4138,2627.9,2627.5,0.4034]
[1729150088061,0.38059,2627.9,2627.8,0.3806]
[1729150088258,2.0471,2628.2,2627.5,1.6334]
[1729150088461,2.0471,2628.2,2627.7,0.38061]
[1729150088462,0.3806,2627.9,2627.7,0.38061]
[1729150089259,3.38927,2628.2,2627.7,0.38061]
[1729150089260,0.3806,2627.8,2627.7,0.38061]
[1729150089463,1.6106,2627.8,2627.7,0.38061]
[1729150090262,1.23,2627.8,2627.7,0.38061]
[1729150090561,1.6106,2627.8,2627.7,0.38061]
[1729150092259,1.23,2627.8,2627.5,0.4034]
[1729150092461,1.23,2627.6,2627.5,0.4034]
[1729150092657,1.61063,2627.6,2627.5,0.78404]
[1729150092850,0.38064,2627.5,2627.4,0.3932]
[1729150093064,0.38066,2627.4,2627.3,3.2078]
[1729150093265,1.61066,2627.4,2627.3,3.2078]
[1729150093563,0.38067,2627.3,2627.2,0.3837]
[1729150094363,3.05067,2627.3,2627.2,0.3837]
[1729150094551,0.38071,2627.0,2626.9,0.3979]
[1729150094864,0.38071,2627.0,2626.8,3.97223]
[1729150095159,1.2331,2627.2,2626.8,3.5915]
[1729150095365,0.38073,2626.9,2626.8,3.5915]
[1729150095760,0.38073,2626.9,2626.8,3.97224]
[1729150096263,0.38073,2627.0,2626.8,3.97224]
[1729150096458,1.2331,2627.2,2626.8,3.5915]
[1729150096764,0.38073,2626.9,2626.8,3.5915]
[1729150098063,0.38073,2626.9,2626.8,0.3837]
[1729150098365,0.38073,2626.9,2626.8,0.76444]
[1729150099158,2.67,2626.9,2626.7,1.39579038]
[1729150099363,2.67,2626.9,2626.6,0.99618373]
[1729150099364,0.38076,2626.7,2626.6,0.99618373]
[1729150099564,0.38077,2626.6,2626.5,1.40518373]
[1729150099755,0.4238,2626.8,2626.5,0.78978]
[1729150099975,0.4238,2626.8,2626.5,0.409]
[1729150100260,0.38077,2626.6,2626.5,0.409]
[1729150101163,0.3851,2626.7,2626.5,0.409]
[1729150101371,0.3851,2626.7,2626.6,0.38077]
[1729150101566,0.38072,2627.0,2626.8,0.38074]
[1729150101862,0.38072,2627.0,2626.5,0.409]
[1729150101863,0.38072,2627.0,2626.9,0.38072]
[1729150102168,4.18712,2627.0,2626.9,0.38073]
[1729150102466,3.8064,2627.0,2626.7,1.80838373]
[1729150102668,0.38072,2627.0,2626.9,0.38072]
[1729150103064,4.18712,2627.0,2626.9,0.38072]
[1729150103473,0.38073,2626.9,2626.8,0.38073]
[1729150103668,0.38072,2627.0,2626.9,0.38072]
[1729150104164,4.18712,2627.0,2626.9,0.38072]
[1729150104766,3.8064,2627.0,2626.7,0.8122]
[1729150104958,3.05074,2626.8,2626.7,0.79125]
[1729150105665,0.38076,2626.7,2626.6,0.38076]
[1729150107167,2.67,2626.8,2626.5,3.6168]
[1729150107380,3.05075,2626.8,2626.7,0.38076]
[1729150111475,3.05075,2626.8,2626.6,0.38076]
[1729150111476,0.38077,2626.7,2626.6,0.38076]
[1729150112274,3.8072,2626.7,2626.4,0.3962]
[1729150112472,1.63138,2626.6,2626.5,0.38077]
[1729150113571,0.38079,2626.5,2626.4,0.77699]
[1729150113765,1.61079,2626.5,2626.4,0.77699]
[1729150114167,1.23,2626.5,2626.4,0.77699]
[1729150115271,1.61079,2626.5,2626.4,0.777]
[1729150115576,0.3808,2626.4,2626.3,3.6228]
[1729150115777,1.6108,2626.4,2626.3,3.6228]
[1729150115973,1.6108,2626.4,2626.3,3.2078]
[1729150116473,1.23,2626.4,2626.3,3.58862]
[1729150116673,1.6108,2626.4,2626.3,3.58862]
[1729150116981,1.6108,2626.4,2626.3,3.2078]
[1729150117577,0.38083,2626.2,2626.1,0.4035]
[1729150117787,1.61083,2626.2,2626.1,0.4035]
[1729150119867,1.2506,2626.6,2626.1,0.4035]
[1729150120082,0.38081,2626.4,2626.2,0.38083]
[1729150120379,0.38083,2626.2,2626.1,0.792]
[1729150120576,0.38083,2626.2,2626.1,1.17284]
[1729150120771,1.23,2626.2,2626.1,1.17284]
[1729150123072,1.61083,2626.2,2626.1,1.17284]
[1729150123682,1.61083,2626.2,2626.1,0.792]
[1729150124069,1.61083,2626.2,2626.1,1.17284]
[1729150124277,1.23,2626.2,2626.1,1.17284]
[1729150128379,1.61083,2626.2,2626.1,1.17284]
[1729150128576,1.23,2626.2,2626.1,1.17284]
[1729150131583,3.2078,2626.8,2626.5,0.38079]
[1729150131781,1.23,2626.7,2626.6,1.59007]
[1729150131978,1.23,2626.7,2626.6,1.2093]
[1729150132186,1.23,2626.7,2626.6,1.59007]
[1729150132481,1.61076,2626.7,2626.6,1.2093]
[1729150132680,1.61076,2626.7,2626.5,3.58858]
[1729150132681,11.98911,2626.7,2626.2,0.99618373]
[1729150132886,1.23,2626.3,2626.0,2.20548373]
[1729150133089,0.38083,2626.2,2626.1,0.38084]
[1729150133282,0.38084,2626.1,2626.0,1.59015]
[1729150133588,1.61085,2626.1,2626.0,0.38086]
[1729150133779,1.61085,2626.1,2626.0,0.4078]
[1729150134579,2.84085,2626.1,2626.0,0.4078]
[1729150134779,1.61085,2626.1,2626.0,0.4078]
[1729150135478,2.84085,2626.1,2626.0,0.4078]
[1729150135681,1.61085,2626.1,2626.0,0.4078]
[1729150135882,3.06085,2626.1,2626.0,0.4078]
[1729150137288,0.38086,2626.0,2625.9,3.2078]
[1729150137586,0.77806,2626.0,2625.9,3.2078]
[1729150137775,1.2148,2626.0,2625.8,1.2148]
[1729150137978,0.38087,2625.9,2625.8,1.2148]
[1729150138190,0.38087,2625.9,2625.8,0.8182]
[1729150138386,0.38087,2625.9,2625.8,0.4133]
[1729150140782,2.68,2625.9,2625.7,0.99618373]
[1729150141092,0.3809,2625.7,2625.6,1.82768373]
[1729150141284,2.68,2625.9,2625.6,1.82768373]
[1729150141476,2.68,2625.9,2625.6,2.20859373]
[1729150141675,0.38092,2625.6,2625.5,5.08597008]
[1729150141880,0.38091,2625.7,2625.5,4.82310281]
[1729150142080,0.38091,2625.7,2625.6,0.99697404]
[1729150142286,0.38091,2625.7,2625.6,1.37789404]
[1729150142481,0.38092,2625.6,2625.5,4.20477404]
[1729150142682,0.80422,2625.6,2625.5,4.20477404]
[1729150142884,0.80422,2625.6,2625.5,3.2078]
[1729150144283,0.80422,2625.6,2625.5,3.58873]
[1729150144478,0.80422,2625.6,2625.5,4.58570404]
[1729150144678,0.3809,2625.8,2625.5,3.2078]
[1729150144890,2.68,2625.9,2625.6,0.3943]
[1729150145094,2.68,2625.9,2625.6,0.77521]
[1729150145286,3.0609,2625.7,2625.6,0.3943]
[1729150145788,2.68,2625.7,2625.5,3.58873]
[1729150145996,0.38092,2625.6,2625.5,3.58873]
[1729150146485,3.06091,2625.7,2625.5,3.58872]
[1729150146684,3.06091,2625.7,2625.6,0.38092]
[1729150146879,3.06091,2625.7,2625.5,3.58872]
[1729150147083,3.06091,2625.7,2625.5,3.2078]
[1729150147286,2.68,2625.7,2625.5,3.2078]
[1729150147487,0.38092,2625.6,2625.5,3.2078]
[1729150147685,0.77192,2625.6,2625.5,3.2078]
[1729150149403,0.77192,2625.6,2625.5,3.58873]
[1729150149587,0.391,2625.6,2625.5,3.58873]
[1729150149895,0.77806,2626.0,2625.5,8.96590404]
[1729150150080,0.38085,2626.1,2625.7,0.99636416]
[1729150150281,0.38085,2626.1,2625.8,1.2245]
[1729150150485,0.38085,2626.1,2626.0,0.38086]
[1729150150782,0.38085,2626.1,2625.8,2.22086416]
[1729150150783,5.8878,2626.2,2625.8,2.22086416]
[1729150150989,0.38085,2626.1,2626.0,0.38085]
[1729150152091,0.38087,2626.0,2625.9,0.38086]
[1729150152291,0.38087,2625.9,2625.8,2.18664416]
[1729150152499,3.2078,2626.2,2625.8,0.8094]
[1729150152500,5.8878,2626.2,2625.8,0.8094]
[1729150152688,0.38085,2626.1,2626.0,0.38085]
[1729150153091,6.26864,2626.2,2626.1,0.38084]
[1729150156297,3.06084,2626.2,2626.1,0.38084]
[1729150156898,3.06083,2626.2,2626.1,0.38084]
[1729150159303,0.38086,2626.1,2625.9,0.99636416]
[1729150159499,0.38086,2626.0,2625.9,1.37722416]
[1729150159899,1.61086,2626.0,2625.9,0.38086]
[1729150160106,1.23,2626.0,2625.9,0.38086]
[1729150160301,1.23,2626.0,2625.9,1.37722416]
[1729150160494,1.23,2626.0,2625.9,0.38086]
[1729150161203,1.23,2626.0,2625.9,1.37722416]
[1729150162394,1.61086,2626.0,2625.9,1.37722416]
[1729150162705,1.23,2626.0,2625.9,1.37722416]
[1729150162901,1.61086,2626.0,2625.9,1.37722416]
[1729150164101,1.23,2626.0,2625.9,1.37722416]
[1729150164702,1.61086,2626.0,2625.9,1.37722416]
[1729150165409,1.61086,2626.0,2625.9,2.61256991]
[1729150166305,1.23,2626.0,2625.9,2.61256991]
[1729150166504,1.23,2626.0,2625.9,3.11344583]
[1729150167408,1.23,2626.0,2625.9,3.11346464]
[1729150168210,1.61086,2626.0,2625.9,3.11346464]
[1729150170221,1.23,2626.0,2625.9,3.11346464]
[1729150172106,1.61086,2626.0,2625.9,3.11346464]
[1729150172306,1.61086,2626.0,2625.9,3.11369854]
[1729150174818,1.23,2626.0,2625.9,3.11369854]
[1729150175018,1.61086,2626.0,2625.9,3.11369854]
[1729150176309,1.23,2626.0,2625.9,3.11369854]
[1729150176511,1.61086,2626.0,2625.9,1.61645846]
[1729150177013,1.61086,2626.0,2625.9,1.87812042]
[1729150177220,1.61086,2626.0,2625.9,3.11400751]
[1729150177413,1.61086,2626.0,2625.9,1.61674709]
[1729150178615,1.23,2626.0,2625.9,3.6051224]
[1729150178821,1.61086,2626.0,2625.9,3.6051224]
[1729150183518,1.61086,2626.0,2625.9,1.61674709]
[1729150184920,1.23,2626.0,2625.9,1.61674709]
[1729150185118,1.23,2626.0,2625.9,3.6051224]
[1729150185317,1.23,2626.0,2625.9,1.61674709]
[1729150186522,1.61086,2626.0,2625.9,1.61674709]
[1729150188025,1.23,2626.0,2625.9,1.61674709]
[1729150188526,1.23,2626.0,2625.9,3.6051224]
[1729150189031,1.23,2626.0,2625.9,1.61674709]
[1729150189224,1.23,2626.1,2625.9,1.23588709]
[1729150189435,1.23,2626.1,2626.0,1.61674709]
[1729150189732,1.23,2626.1,2626.0,3.6051224]
[1729150190823,1.228,2626.3,2626.0,3.2242624]
[1729150191033,1.60882,2626.3,2626.2,0.9989166]
[1729150191328,2.83882,2626.3,2626.2,2.23572798]
[1729150191529,6.64682,2626.3,2626.2,1.61764138]
[1729150191738,2.83882,2626.3,2626.2,3.11598211]
[1729150193131,2.83882,2626.3,2626.2,2.73515211]
[1729150193731,2.83882,2626.3,2626.2,3.11598211]
[1729150195733,2.83882,2626.3,2626.2,1.61764138]
[1729150196333,2.83882,2626.3,2626.2,3.11732717]
[1729150196534,2.83882,2626.3,2626.2,1.61764138]
[1729150197543,2.83882,2626.3,2626.2,3.11726687]
[1729150200034,2.83882,2626.3,2626.2,1.61764138]
[1729150200240,2.83882,2626.3,2626.2,2.00784138]
[1729150200830,2.43132,2626.3,2626.2,2.00784138]
[1729150201144,4.125,2626.9,2626.2,2.00784138]
[1729150201145,1.97410429,2627.2,2627.0,0.38071]
[1729150201337,1.23,2627.2,2627.1,1.7692352]
[1729150201638,1.61069,2627.2,2627.1,2.23443036]
[1729150201837,12.52360289,2627.2,2626.9,0.99827863]
[1729150202033,2.84071,2627.0,2626.9,0.99827863]
[1729150202234,2.84071,2627.0,2626.8,4.20607863]
[1729150202235,0.38073,2626.9,2626.8,4.20607863]
[1729150202431,6.64723,2626.9,2626.8,4.20607863]
[1729150202741,13.75370289,2626.9,2626.5,0.99827863]
[1729150202938,1.61077,2626.6,2626.5,0.99827863]
[1729150203241,1.61077,2626.6,2626.5,0.38079]
[1729150203242,5.41799,2626.6,2626.5,0.38079]
[1729150203630,5.41799,2626.6,2626.5,1.37906863]
[1729150203836,0.38079,2626.6,2626.5,3.11541529]
[1729150204142,1.23,2626.6,2626.5,1.61632563]
[1729150204343,1.23,2626.6,2626.5,1.37889058]
[1729150204536,1.61081,2626.6,2626.5,1.37889058]
[1729150204738,1.61081,2626.6,2626.4,0.4114]
[1729150204739,1.61081,2626.6,2626.4,1.40946058]
[1729150204944,1.23,2626.5,2626.4,1.40946058]
[1729150205143,1.61083,2626.5,2626.4,3.02569268]
[1729150205343,2.0423,2626.5,2626.4,1.79030058]